bitfinex/quotes_SOLUSD_20250604
["timestamp","ask_amount","ask_price","bid_price","bid_amount"]
[1749060443167,15.71878449,156.23,156.19,15.71878449]
[1749060443953,21.73518449,156.24,156.19,15.71878449]
[1749060445481,15.71878449,156.22,156.18,15.71878449]
[1749060445682,15.71878449,156.2,156.16,15.71878449]
[1749060445863,21.73518449,156.24,156.16,15.71878449]
[1749060445864,41.71878449,156.21,156.16,15.71878449]
[1749060446060,41.71878449,156.21,156.17,15.71878449]
[1749060446757,15.71878449,156.21,156.17,15.71878449]
[1749060447186,32.0164,156.24,156.17,15.71878449]
[1749060447481,32.0164,156.24,156.19,15.71878449]
[1749060447685,15.71878449,156.23,156.18,15.71878449]
[1749060447861,15.71878449,156.22,156.18,15.71878449]
[1749060448056,32.0164,156.24,156.15,18.933972]
[1749060448288,32.0164,156.24,156.18,15.71878449]
[1749060448487,15.71878449,156.22,156.18,15.71878449]
[1749060448786,32.0164,156.24,156.18,15.71878449]
[1749060448965,15.71878449,156.23,156.19,15.71878449]
[1749060449166,15.71878449,156.22,156.18,15.71878449]
[1749060450586,47.73518449,156.24,156.17,0.28432314]
[1749060450756,15.71878449,156.23,156.18,15.71878449]
[1749060451763,15.71878449,156.22,156.18,15.71878449]
[1749060452659,15.71878449,156.22,156.15,19.21829514]
[1749060452864,15.71878449,156.22,156.18,15.71878449]
[1749060455186,15.71878449,156.21,156.17,15.71878449]
[1749060455382,15.71878449,156.21,156.15,18.933972]
[1749060455566,15.71878449,156.21,156.17,15.71878449]
[1749060457382,15.71878449,156.22,156.18,15.71878449]
[1749060458990,15.71878449,156.22,156.17,15.71878449]
[1749060459390,15.71878449,156.22,156.15,18.933972]
[1749060459589,15.71878449,156.22,156.17,15.71878449]
[1749060461195,15.71878449,156.21,156.17,15.71878449]
[1749060461505,6.0164,156.24,156.14,15.71878449]
[1749060461506,15.71878449,156.18,156.14,15.71878449]
[1749060461704,15.71878449,156.18,156.13,15.71878449]
[1749060462002,15.71878449,156.18,156.13,41.71878449]
[1749060462371,15.71878449,156.17,156.13,26.0]
[1749060462576,15.71878449,156.15,156.11,15.71878449]
[1749060464907,15.71878449,156.16,156.11,15.71878449]
[1749060465211,15.71878449,156.16,156.12,15.71878449]
[1749060467528,15.71878449,156.16,156.11,18.933972]
[1749060467826,15.71878449,156.16,156.12,15.71878449]
[1749060470109,15.71878449,156.16,156.11,34.65275649]
[1749060475101,15.71878449,156.15,156.11,34.65275649]
[1749060480502,15.71878449,156.16,156.11,34.65275649]
[1749060482604,15.71878449,156.13,156.08,0.14216157]
[1749060482933,6.4165,156.18,156.07,18.64964886]
[1749060482934,1.5964,156.14,156.07,18.64964886]
[1749060483233,15.71878449,156.1,156.06,15.71878449]
[1749060483414,15.71878449,156.11,156.07,15.71878449]
[1749060484630,15.71878449,156.1,156.06,15.71878449]
[1749060485698,15.71878449,156.11,156.07,15.71878449]
[1749060486327,15.71878449,156.11,156.04,15.86094606]
[1749060486328,26.0,156.11,156.04,15.86094606]
[1749060486511,15.71878449,156.09,156.04,15.71878449]
[1749060487029,15.71878449,156.07,156.01,26.0]
[1749060487204,15.71878449,156.07,156.02,18.79181043]
[1749060487412,15.71878449,156.07,156.03,15.71878449]
[1749060488028,15.71878449,156.06,156.02,18.79181043]
[1749060488237,15.71878449,156.05,156.0,18.79181043]
[1749060488527,15.71878449,156.05,156.01,15.71878449]
[1749060489439,15.71878449,156.04,156.0,34.51059492]
[1749060489808,15.71878449,156.04,156.0,0.14216157]
[1749060490021,15.71878449,156.04,156.0,26.14216157]
[1749060490217,15.71878449,156.03,156.0,26.14216157]
[1749060490530,15.71878449,156.03,156.0,26.0]
[1749060491434,15.71878449,156.01,155.97,18.64964886]
[1749060491639,15.71878449,156.02,155.98,15.71878449]
[1749060491948,23.70530763,156.08,155.99,15.71878449]
[1749060491949,15.71878449,156.03,155.99,15.71878449]
[1749060493409,15.71878449,156.04,155.99,15.71878449]
[1749060493636,15.71878449,156.04,156.0,15.71878449]
[1749060495011,23.42098449,156.08,156.0,15.71878449]
[1749060495213,23.42098449,156.08,156.02,15.71878449]
[1749060495214,7.7022,156.08,156.02,15.71878449]
[1749060495440,15.71878449,156.06,156.02,15.71878449]
[1749060496031,7.7022,156.08,156.02,15.71878449]
[1749060496239,15.71878449,156.07,156.03,15.71878449]
[1749060496413,7.7022,156.08,156.02,15.71878449]
[1749060496414,15.71878449,156.06,156.02,15.71878449]
[1749060497639,15.71878449,156.05,156.01,15.71878449]
[1749060498234,15.71878449,156.02,155.98,41.71878449]
[1749060498714,15.71878449,156.01,155.97,34.51059492]
[1749060499247,15.71878449,155.98,155.95,26.0]
[1749060499424,15.71878449,155.98,155.93,15.86094606]
[1749060499623,15.71878449,155.98,155.94,15.71878449]
[1749060499948,15.71878449,155.97,155.91,7.72236322]
[1749060500112,15.71878449,155.97,155.92,41.86094606]
[1749060500314,15.71878449,155.98,155.93,15.71878449]
[1749060500743,7.6388,156.04,155.93,15.71878449]
[1749060500744,15.71878449,155.97,155.93,15.71878449]
[1749060502017,15.71878449,155.98,155.94,15.71878449]
[1749060504431,15.71878449,155.97,155.93,34.36843335]
[1749060505957,15.71878449,155.98,155.93,34.36843335]
[1749060506253,15.71878449,155.99,155.95,15.71878449]
[1749060508046,15.71878449,155.98,155.93,34.36843335]
[1749060508234,15.71878449,155.95,155.92,26.0]
[1749060508942,1.6142,155.98,155.92,26.0]
[1749060508943,15.71878449,155.96,155.92,26.0]
[1749060509163,15.71878449,155.95,155.92,26.0]
[1749060510236,15.71878449,155.95,155.88,4.71394585]
[1749060510237,15.71878449,155.93,155.88,15.71878449]
[1749060510550,15.71878449,155.92,155.88,15.71878449]
[1749060511022,15.71878449,155.92,155.88,0.28432314]
[1749060511223,15.71878449,155.92,155.88,16.00310763]
[1749060512054,15.71878449,155.92,155.88,15.71878449]
[1749060512250,15.71878449,155.91,155.87,15.71878449]
[1749060512456,15.71878449,155.9,155.86,60.36843335]
[1749060512823,15.71878449,155.9,155.86,44.64964886]
[1749060513026,15.71878449,155.9,155.86,60.36843335]
[1749060513232,15.71878449,155.9,155.86,44.64964886]
[1749060513438,15.71878449,155.89,155.85,15.71878449]
[1749060513630,15.71878449,155.89,155.84,15.86094606]
[1749060513831,15.71878449,155.89,155.82,1.5204]
[1749060513832,15.71878449,155.86,155.82,15.86094606]
[1749060514039,15.71878449,155.86,155.82,15.71878449]
[1749060514318,15.71878449,155.86,155.8,18.79181043]
[1749060514525,15.71878449,155.86,155.82,26.0]
[1749060514756,15.71878449,155.86,155.82,41.71878449]
[1749060516856,15.71878449,155.85,155.81,41.71878449]
[1749060517354,17.51510763,155.92,155.79,15.71878449]
[1749060517355,15.71878449,155.83,155.79,15.71878449]
[1749060517660,15.71878449,155.81,155.76,15.71878449]
[1749060517868,15.71878449,155.8,155.76,26.0]
[1749060518057,15.71878449,155.8,155.76,15.71878449]
[1749060518369,15.71878449,155.8,155.75,34.36843335]
[1749060518528,15.71878449,155.8,155.76,15.71878449]
[1749060519238,15.71878449,155.8,155.75,34.36843335]
[1749060519653,15.71878449,155.8,155.75,18.64964886]
[1749060519864,15.71878449,155.79,155.75,34.36843335]
[1749060520042,15.71878449,155.79,155.75,15.71878449]
[1749060520246,15.71878449,155.79,155.76,26.0]
[1749060520462,15.71878449,155.78,155.74,15.86094606]
[1749060521090,15.71878449,155.78,155.74,15.71878449]
[1749060522372,15.71878449,155.8,155.76,15.71878449]
[1749060522549,15.71878449,155.79,155.75,15.71878449]
[1749060522753,15.71878449,155.81,155.77,15.71878449]
[1749060523160,15.71878449,155.82,155.77,15.71878449]
[1749060523360,26.0,155.84,155.78,15.71878449]
[1749060523579,15.71878449,155.84,155.79,15.71878449]
[1749060524179,1.6546,155.86,155.76,26.28432314]
[1749060524180,1.6546,155.86,155.8,15.71878449]
[1749060524484,15.71878449,155.85,155.8,15.71878449]
[1749060524654,15.71878449,155.84,155.8,15.71878449]
[1749060525246,15.71878449,155.85,155.8,15.71878449]
[1749060525573,1.6546,155.86,155.82,15.71878449]
[1749060525750,22.36228449,155.87,155.82,15.71878449]
[1749060526480,15.71878449,155.86,155.82,15.71878449]
[1749060527947,15.71878449,155.86,155.81,15.71878449]
[1749060528147,15.71878449,155.84,155.79,15.71878449]
[1749060528385,6.6435,155.87,155.79,15.71878449]
[1749060528693,6.6435,155.87,155.8,15.71878449]
[1749060528848,15.71878449,155.84,155.8,15.71878449]
[1749060529765,15.71878449,155.85,155.81,15.71878449]
[1749060530579,6.6435,155.87,155.81,15.71878449]
[1749060530785,15.71878449,155.85,155.81,15.71878449]
[1749060531870,15.71878449,155.85,155.8,15.71878449]
[1749060532581,15.71878449,155.86,155.81,41.71878449]
[1749060532790,15.71878449,155.86,155.82,15.71878449]
[1749060534084,15.71878449,155.84,155.81,26.0]
[1749060534266,15.71878449,155.82,155.77,18.79181043]
[1749060534471,15.71878449,155.82,155.77,60.51059492]
[1749060534788,15.71878449,155.82,155.77,44.64964886]
[1749060534963,15.71878449,155.82,155.78,15.71878449]
[1749060535369,15.71878449,155.83,155.78,15.71878449]
[1749060535768,15.71878449,155.83,155.77,44.64964886]
[1749060535973,15.71878449,155.83,155.78,15.71878449]
[1749060536373,15.71878449,155.83,155.79,15.71878449]
[1749060536566,15.71878449,155.83,155.77,44.64964886]
[1749060536769,15.71878449,155.83,155.79,15.71878449]
[1749060537981,1.5611,155.84,155.8,15.71878449]
[1749060538181,15.71878449,155.86,155.82,15.71878449]
[1749060538384,15.71878449,155.86,155.81,15.71878449]
[1749060540561,15.71878449,155.85,155.81,15.71878449]
[1749060541281,15.71878449,155.85,155.78,0.28432314]
[1749060541487,32.6435,155.87,155.81,15.71878449]
[1749060541667,15.71878449,155.85,155.81,15.71878449]
[1749060542466,15.71878449,155.86,155.81,15.71878449]
[1749060542862,15.71878449,155.86,155.78,0.28432314]
[1749060543197,15.71878449,155.86,155.81,15.71878449]
[1749060544669,6.6435,155.87,155.83,15.71878449]
[1749060544867,6.6435,155.87,155.78,20.461772]
[1749060544868,1.5915,155.88,155.84,15.71878449]
[1749060545080,1.5915,155.88,155.79,0.28432314]
[1749060545081,17.31028449,155.88,155.82,18.64964886]
[1749060545289,15.71878449,155.87,155.83,15.71878449]
[1749060545863,17.31028449,155.88,155.83,15.71878449]
[1749060548189,15.71878449,155.87,155.83,15.71878449]
[1749060549282,15.71878449,155.87,155.82,18.64964886]
[1749060549490,15.71878449,155.87,155.83,15.71878449]
[1749060549685,17.31028449,155.88,155.84,15.71878449]
[1749060550299,17.31028449,155.88,155.83,15.71878449]
[1749060550984,148.1,155.91,155.85,15.71878449]
[1749060551194,15.71878449,155.9,155.86,15.71878449]
[1749060551696,15.71878449,155.89,155.85,15.71878449]
[1749060552800,41.71878449,155.89,155.85,15.71878449]
[1749060552979,26.0,155.89,155.85,15.71878449]
[1749060553895,41.71878449,155.89,155.85,15.71878449]
[1749060555384,15.71878449,155.88,155.84,15.71878449]
[1749060555710,15.71878449,155.85,155.8,34.51059492]
[1749060555876,15.71878449,155.84,155.8,18.64964886]
[1749060556219,15.71878449,155.84,155.79,34.51059492]
[1749060557703,15.71878449,155.83,155.79,18.79181043]
[1749060558278,15.71878449,155.83,155.79,18.64964886]
[1749060559095,15.71878449,155.83,155.79,34.36843335]
[1749060559816,15.71878449,155.83,155.79,18.64964886]
[1749060563308,15.71878449,155.83,155.79,34.36843335]
[1749060564302,15.71878449,155.84,155.8,15.71878449]
[1749060564895,15.71878449,155.83,155.79,34.36843335]
[1749060565784,15.71878449,155.81,155.77,18.64964886]
[1749060565991,15.71878449,155.8,155.77,18.64964886]
[1749060566407,15.71878449,155.78,155.73,15.71878449]
[1749060566606,1.5568,155.81,155.73,15.71878449]
[1749060566607,15.71878449,155.77,155.73,15.71878449]
[1749060567499,15.71878449,155.76,155.72,15.71878449]
[1749060567888,15.71878449,155.75,155.71,18.64964886]
[1749060568231,15.71878449,155.74,155.7,18.64964886]
[1749060568522,15.71878449,155.75,155.7,15.71878449]
[1749060569999,15.71878449,155.75,155.69,18.79181043]
[1749060570000,15.71878449,155.76,155.71,15.71878449]
[1749060570635,15.71878449,155.75,155.71,15.71878449]
[1749060571824,15.71878449,155.76,155.72,15.71878449]
[1749060573009,32.0458,155.8,155.72,15.71878449]
[1749060573518,15.71878449,155.76,155.72,15.71878449]
[1749060573714,32.0458,155.8,155.72,15.71878449]
[1749060573919,15.71878449,155.77,155.72,15.71878449]
[1749060574119,15.71878449,155.76,155.7,0.28432314]
[1749060574319,15.71878449,155.76,155.72,15.71878449]
[1749060574930,6.0458,155.8,155.75,15.71878449]
[1749060575159,21.76458449,155.8,155.76,15.71878449]
[1749060575312,21.76458449,155.8,155.73,0.28432314]
[1749060575313,15.71878449,155.83,155.79,15.71878449]
[1749060576238,22.32038449,155.84,155.79,15.71878449]
[1749060576546,22.32038449,155.84,155.8,15.71878449]
[1749060577416,22.32038449,155.84,155.79,15.71878449]
[1749060577732,1.6431,155.85,155.81,15.71878449]
[1749060577910,17.36188449,155.85,155.81,15.71878449]
[1749060580127,148.1,155.86,155.83,15.71878449]
[1749060580510,163.81878449,155.86,155.82,15.71878449]
[1749060581739,15.71878449,155.85,155.81,15.71878449]
[1749060582115,163.81878449,155.86,155.82,15.71878449]
[1749060585137,148.1,155.86,155.83,15.71878449]
[1749060586858,148.1,155.86,155.84,15.71878449]
[1749060587224,148.1,155.86,155.83,15.71878449]
[1749060587634,1.6191,155.89,155.85,15.71878449]
[1749060587635,17.33788449,155.89,155.85,15.71878449]
[1749060589250,15.71878449,155.88,155.84,15.71878449]
[1749060589624,1.6191,155.89,155.79,45.21829514]
[1749060589625,1.6191,155.89,155.86,15.71878449]
[1749060589824,41.71878449,155.9,155.87,15.71878449]
[1749060589825,26.0,155.9,155.87,15.71878449]
[1749060590048,148.1,155.91,155.87,15.71878449]
[1749060591660,148.1,155.91,155.88,15.71878449]
[1749060597280,148.1,155.91,155.87,15.71878449]
[1749060598861,163.81878449,155.91,155.87,15.71878449]
[1749060599158,15.71878449,155.9,155.86,15.71878449]
[1749060600785,148.1,155.91,155.86,15.71878449]
[1749060601082,15.71878449,155.9,155.86,15.71878449]
[1749060601854,163.81878449,155.91,155.87,15.71878449]
[1749060602057,148.1,155.91,155.88,15.71878449]
[1749060603277,163.81878449,155.94,155.9,15.71878449]
[1749060603486,148.1,155.94,155.9,15.71878449]
[1749060604159,163.81878449,155.94,155.9,15.71878449]
[1749060604363,15.71878449,155.93,155.89,15.71878449]
[1749060605068,148.1,155.94,155.87,18.64964886]
[1749060605069,148.1,155.94,155.91,15.71878449]
[1749060605275,148.1,155.94,155.92,15.71878449]
[1749060605582,148.1,155.94,155.91,15.71878449]
[1749060606668,148.1,155.94,155.92,15.71878449]
[1749060607378,148.1,155.94,155.91,15.71878449]
[1749060608873,22.37728449,155.96,155.91,15.71878449]
[1749060609072,22.37728449,155.96,155.92,15.71878449]
[1749060609296,15.71878449,155.96,155.92,15.71878449]
[1749060610908,15.71878449,155.93,155.87,18.64964886]
[1749060611113,15.71878449,155.91,155.87,34.36843335]
[1749060611485,15.71878449,155.92,155.88,15.71878449]
[1749060613080,6.6368,155.95,155.89,15.71878449]
[1749060613081,15.71878449,155.93,155.89,15.71878449]
[1749060613282,15.71878449,155.94,155.89,15.71878449]
[1749060613498,15.71878449,155.94,155.87,18.64964886]
[1749060613696,15.71878449,155.93,155.89,15.71878449]
[1749060614085,15.71878449,155.93,155.88,15.71878449]
[1749060614999,15.71878449,155.93,155.89,15.71878449]
[1749060616777,15.71878449,155.95,155.91,15.71878449]
[1749060616984,163.81878449,155.96,155.91,15.71878449]
[1749060617185,163.81878449,155.96,155.92,15.71878449]
[1749060617806,163.81878449,155.96,155.91,15.71878449]
[1749060618388,15.71878449,155.95,155.91,15.71878449]
[1749060618883,15.71878449,155.95,155.9,15.71878449]
[1749060619797,15.71878449,155.95,155.91,15.71878449]
[1749060622011,163.81878449,155.96,155.91,15.71878449]
[1749060622310,163.81878449,155.96,155.92,15.71878449]
[1749060622514,148.1,155.96,155.93,15.71878449]
[1749060623815,15.71878449,155.97,155.93,15.71878449]
[1749060624715,15.71878449,155.97,155.92,15.71878449]
[1749060624891,15.71878449,155.97,155.9,0.14216157]
[1749060624892,15.71878449,155.96,155.91,15.71878449]
[1749060628056,15.71878449,155.96,155.92,15.71878449]
[1749060629400,15.71878449,155.95,155.9,0.28432314]
[1749060629604,32.0018,155.99,155.91,15.71878449]
[1749060629605,15.71878449,155.96,155.91,15.71878449]
[1749060629804,15.71878449,155.95,155.91,15.71878449]
[1749060631217,15.71878449,155.97,155.92,15.71878449]
[1749060631414,15.71878449,155.97,155.93,15.71878449]
[1749060632009,15.71878449,155.97,155.92,15.71878449]
[1749060633537,15.71878449,155.98,155.93,15.71878449]
[1749060635110,15.71878449,155.97,155.93,15.71878449]
[1749060636029,15.71878449,155.98,155.93,15.71878449]
[1749060637230,26.0,155.96,155.93,15.71878449]
[1749060643634,26.0,155.96,155.94,15.71878449]
[1749060644741,26.0,155.96,155.93,15.71878449]
[1749060647545,41.71878449,155.94,155.85,15.86094606]
[1749060647761,15.71878449,155.89,155.85,15.86094606]
[1749060648123,15.71878449,155.89,155.86,18.64964886]
[1749060648449,15.71878449,155.88,155.85,18.64964886]
[1749060649128,15.71878449,155.89,155.85,34.36843335]
[1749060651167,15.71878449,155.89,155.85,18.64964886]
[1749060652756,15.71878449,155.88,155.85,18.64964886]
[1749060654630,15.71878449,155.89,155.85,34.36843335]
[1749060655362,15.71878449,155.9,155.86,15.71878449]
[1749060656364,15.71878449,155.89,155.85,34.36843335]
[1749060657728,41.71878449,155.9,155.85,34.36843335]
[1749060659049,15.71878449,155.9,155.85,34.36843335]
[1749060659263,4.77845029,155.89,155.85,34.36843335]
[1749060659431,15.71878449,155.9,155.85,34.36843335]
[1749060659833,4.7784474,155.89,155.85,34.36843335]
[1749060660031,15.71878449,155.9,155.85,34.36843335]
[1749060660230,15.71878449,155.9,155.86,15.71878449]
[1749060661540,4.77799799,155.89,155.86,15.71878449]
[1749060661739,15.71878449,155.9,155.86,15.71878449]
[1749060661940,15.71878449,155.9,155.85,18.64964886]
[1749060662260,4.77778199,155.89,155.85,34.36843335]
[1749060662465,15.71878449,155.9,155.85,34.36843335]
[1749060663165,4.77797393,155.89,155.85,34.36843335]
[1749060663360,15.71878449,155.9,155.85,34.36843335]
[1749060663361,4.7779149,155.88,155.85,34.36843335]
[1749060663567,6.3431,155.93,155.87,34.36843335]
[1749060663776,148.1,155.94,155.92,15.71878449]
[1749060663942,6.4851,155.97,155.93,15.71878449]
[1749060664259,15.71878449,155.98,155.94,15.71878449]
[1749060664467,4.77954009,155.97,155.95,15.71878449]
[1749060664677,1.5897,156.0,155.95,15.71878449]
[1749060664961,43.30848449,156.0,155.95,15.71878449]
[1749060665459,15.71878449,155.99,155.95,15.71878449]
[1749060666172,20.49855463,155.98,155.94,15.71878449]
[1749060666346,15.71878449,155.98,155.94,15.71878449]
[1749060667252,15.71878449,155.97,155.93,15.71878449]
[1749060667436,15.71878449,155.96,155.9,26.0]
[1749060667637,15.71878449,155.94,155.9,15.71878449]
[1749060668155,15.71878449,155.95,155.9,15.71878449]
[1749060668351,15.71878449,155.95,155.91,15.71878449]
[1749060668755,4.77849725,155.94,155.91,15.71878449]
[1749060669076,15.71878449,155.95,155.91,15.71878449]
[1749060669242,4.77816359,155.94,155.91,15.71878449]
[1749060669443,4.77813531,155.93,155.91,15.71878449]
[1749060669644,15.71878449,155.95,155.91,15.71878449]
[1749060669875,4.77793689,155.94,155.91,15.71878449]
[1749060670079,15.71878449,155.95,155.91,15.71878449]
[1749060670381,4.77836865,155.94,155.91,15.71878449]
[1749060670551,15.71878449,155.95,155.88,18.64964886]
[1749060670552,15.71878449,155.95,155.9,15.71878449]
[1749060670952,15.71878449,155.94,155.9,15.71878449]
[1749060671970,15.71878449,155.92,155.87,26.0]
[1749060672151,4.77781059,155.91,155.87,41.71878449]
[1749060672362,15.71878449,155.92,155.87,15.71878449]
[1749060672755,15.71878449,155.92,155.88,15.71878449]
[1749060672956,15.71878449,155.93,155.89,15.71878449]
[1749060674975,4.77763939,155.92,155.89,15.71878449]
[1749060675160,15.71878449,155.93,155.89,15.71878449]
[1749060677470,4.77661484,155.92,155.89,15.71878449]
[1749060677797,15.71878449,155.93,155.89,15.71878449]
[1749060678885,15.71878449,155.94,155.89,15.71878449]
[1749060679362,20.49421188,155.93,155.89,15.71878449]
[1749060679569,15.71878449,155.93,155.89,15.71878449]
[1749060679795,4.77545324,155.92,155.89,15.71878449]
[1749060680095,15.71878449,155.93,155.89,15.71878449]
[1749060680773,4.77462835,155.92,155.89,15.71878449]
[1749060681099,15.71878449,155.93,155.89,15.71878449]
[1749060681790,15.71878449,155.94,155.9,15.71878449]
[1749060681994,4.7744988,155.93,155.9,15.71878449]
[1749060682207,15.71878449,155.94,155.9,15.71878449]
[1749060682707,4.77465414,155.93,155.9,15.71878449]
[1749060683009,148.1,155.96,155.92,15.71878449]
[1749060683311,148.1,155.96,155.93,15.71878449]
[1749060683472,4.77447958,155.95,155.93,15.71878449]
[1749060683674,148.1,155.96,155.93,15.71878449]
[1749060684067,15.71878449,155.97,155.93,15.71878449]
[1749060684271,15.71878449,155.98,155.94,15.71878449]
[1749060684486,4.77395785,155.97,155.94,15.71878449]
[1749060684796,4.77459996,155.96,155.95,15.71878449]
[1749060685011,4.77459835,155.96,155.94,15.71878449]
[1749060685189,15.71878449,155.98,155.94,15.71878449]
[1749060685391,4.77521838,155.97,155.94,15.71878449]
[1749060685620,15.71878449,155.98,155.94,15.71878449]
[1749060686190,156.2473,155.99,155.94,15.71878449]
[1749060686191,4.77520419,155.97,155.94,15.71878449]
[1749060686502,4.77520381,155.96,155.94,15.71878449]
[1749060686689,4.7752018,155.95,155.94,15.71878449]
[1749060686888,4.77519979,155.95,155.94,15.71878449]
[1749060687119,171.96608449,155.99,155.94,15.71878449]
[1749060687995,4.77572217,155.98,155.94,15.71878449]
[1749060688315,171.96608449,155.99,155.94,15.71878449]
[1749060690007,4.77578127,155.98,155.94,15.71878449]
[1749060690192,171.96608449,155.99,155.94,15.71878449]
[1749060691606,4.77557327,155.98,155.9,0.28432314]
[1749060691815,156.2473,155.99,155.94,15.71878449]
[1749060692114,171.96608449,155.99,155.94,15.71878449]
[1749060692501,20.49422572,155.98,155.94,15.71878449]
[1749060692717,15.71878449,155.98,155.94,15.71878449]
[1749060693325,4.77508114,155.97,155.94,15.71878449]
[1749060693620,4.77499822,155.96,155.94,15.71878449]
[1749060693810,15.71878449,155.98,155.94,15.71878449]
[1749060694812,4.77557653,155.97,155.94,15.71878449]
[1749060695001,4.77557518,155.96,155.94,15.71878449]
[1749060695208,4.77557653,155.97,155.94,15.71878449]
[1749060695495,4.77557653,155.97,155.95,15.71878449]
[1749060695899,4.77557653,155.97,155.96,15.71878449]
[1749060697028,4.77557653,155.97,155.96,34.36843335]
[1749060705032,4.77557653,155.97,155.96,34.79491806]
[1749060705333,148.1,156.03,155.99,26.0]
[1749060705630,6.0489,156.07,156.02,15.71878449]
[1749060705834,6.0489,156.07,156.04,15.71878449]
[1749060706950,6.0489,156.07,156.03,15.71878449]
[1749060707130,21.76768449,156.07,156.03,15.71878449]
[1749060707948,6.0489,156.07,156.03,15.71878449]
[1749060708247,21.76768449,156.07,156.03,15.71878449]
[1749060709427,26.0,156.03,156.0,15.71878449]
[1749060709626,26.0,156.03,155.99,15.71878449]
[1749060710549,41.71878449,156.03,155.96,0.14216157]
[1749060710725,15.71878449,156.02,155.97,15.71878449]
[1749060711246,15.71878449,156.0,155.94,18.79181043]
[1749060711551,15.71878449,155.98,155.94,15.71878449]
[1749060712135,41.71878449,155.99,155.94,15.71878449]
[1749060712557,15.71878449,155.98,155.93,15.71878449]
[1749060713730,15.71878449,155.98,155.94,15.71878449]
[1749060714845,26.0,155.99,155.96,15.71878449]
[1749060715744,15.71878449,156.0,155.96,15.71878449]
[1749060716750,1.6142,156.03,155.99,15.71878449]
[1749060716939,17.33298449,156.03,155.99,15.71878449]
[1749060717753,15.71878449,156.02,155.98,15.71878449]
[1749060721145,15.71878449,156.02,155.94,26.42648471]
[1749060721146,15.71878449,156.01,155.96,15.71878449]
[1749060721537,15.71878449,156.01,155.97,15.71878449]
[1749060721743,15.71878449,156.02,155.98,15.71878449]
[1749060722346,1.6142,156.03,155.99,15.71878449]
[1749060722347,17.33298449,156.03,155.99,15.71878449]
[1749060722545,1.6142,156.03,155.99,15.71878449]
[1749060723544,170.29258449,156.05,156.0,15.71878449]
[1749060724464,170.29258449,156.05,156.01,15.71878449]
[1749060724856,15.71878449,156.04,156.0,15.71878449]
[1749060725855,15.71878449,156.04,155.97,0.28432314]
[1749060726058,15.71878449,156.02,155.98,15.71878449]
[1749060726356,15.71878449,156.02,155.97,15.71878449]
[1749060726567,15.71878449,156.02,155.98,15.71878449]
[1749060727235,15.71878449,156.01,155.97,15.71878449]
[1749060727432,15.71878449,156.02,155.98,15.71878449]
[1749060728237,15.71878449,156.02,155.96,26.0]
[1749060728459,15.71878449,156.0,155.95,15.71878449]
[1749060728640,15.71878449,155.99,155.95,15.71878449]
[1749060730557,15.71878449,155.98,155.93,26.0]
[1749060730756,15.71878449,155.97,155.93,41.71878449]
[1749060731074,15.71878449,155.99,155.94,15.71878449]
[1749060731664,15.71878449,155.98,155.93,26.0]
[1749060731878,15.71878449,155.98,155.93,41.71878449]
[1749060732049,15.71878449,155.98,155.94,15.71878449]
[1749060734452,15.71878449,155.98,155.93,41.71878449]
[1749060735479,15.71878449,155.97,155.93,41.71878449]
[1749060736182,15.71878449,155.97,155.92,15.71878449]
[1749060736374,15.71878449,155.94,155.9,15.71878449]
[1749060736576,15.71878449,155.93,155.89,15.71878449]
[1749060737463,15.71878449,155.93,155.88,44.64964886]
[1749060737776,15.71878449,155.92,155.88,15.71878449]
[1749060738077,15.71878449,155.93,155.88,15.71878449]
[1749060738276,15.71878449,155.94,155.89,15.71878449]
[1749060739166,17.24308449,155.95,155.91,15.71878449]
[1749060739678,15.71878449,155.94,155.9,15.71878449]
[1749060741677,15.71878449,155.96,155.91,15.71878449]
[1749060742265,148.1,155.97,155.91,15.71878449]
[1749060742470,148.1,155.97,155.94,15.71878449]
[1749060744386,163.81878449,155.97,155.93,15.71878449]
[1749060745769,163.81878449,155.97,155.92,15.71878449]
[1749060750577,148.1,155.97,155.93,15.71878449]
[1749060751784,163.81878449,155.97,155.93,15.71878449]
[1749060752397,148.1,155.97,155.93,15.71878449]
[1749060752596,148.1,155.97,155.94,15.71878449]
[1749060754099,148.1,155.97,155.95,15.71878449]
[1749060756504,148.1,155.97,155.94,15.71878449]
[1749060758500,148.1,155.97,155.95,15.71878449]
[1749060759779,15.71878449,155.99,155.95,15.71878449]
[1749060761681,15.71878449,155.99,155.91,18.933972]
[1749060761682,15.71878449,155.98,155.94,15.71878449]
[1749060762800,15.71878449,155.98,155.91,18.64964886]
[1749060762982,15.71878449,155.97,155.91,18.64964886]
[1749060763384,15.71878449,155.97,155.92,15.71878449]
[1749060763588,15.71878449,155.96,155.92,15.71878449]
[1749060766409,15.71878449,155.96,155.91,18.64964886]
[1749060766592,15.71878449,155.96,155.92,15.71878449]
[1749060767613,26.0,155.98,155.92,15.71878449]
[1749060767801,26.0,155.98,155.91,15.71878449]
[1749060767802,15.71878449,155.95,155.91,15.71878449]
[1749060768199,15.71878449,155.96,155.91,15.71878449]